[Event "Late-Titled-Tuesday-Blitz-March-05-2024"]
[Site "Chess.com"]
[Date "2024.03.05"]
[Round "8"]
[White "corvachesky"]
[Black "Zampronha1971"]
[Result "1-0"]
[WhiteElo "2508"]
[BlackElo "2336"]
[TimeControl "180+1"]
[EndTime "15:24:50 PST"]
[Termination "corvachesky won on time"]

1. Nf3 {[%clk 0:02:53.2]} 1... c5 {[%clk 0:02:59.4]} 2. c4 {[%clk 0:02:52.6]}
2... Nc6 {[%clk 0:02:59.4]} 3. d4 {[%clk 0:02:53]} 3... cxd4 {[%clk 0:02:58.3]}
4. Nxd4 {[%clk 0:02:53.9]} 4... Nf6 {[%clk 0:02:58]} 5. Nc3 {[%clk 0:02:52.8]}
5... e6 {[%clk 0:02:57]} 6. a3 {[%clk 0:02:50.7]} 6... a6 {[%clk 0:02:54.1]} 7.
g3 {[%clk 0:02:49.9]} 7... Bc5 {[%clk 0:02:49.5]} 8. Nb3 {[%clk 0:02:21.1]} 8...
Be7 {[%clk 0:02:47.2]} 9. Bg2 {[%clk 0:02:21]} 9... d6 {[%clk 0:02:44.6]} 10.
O-O {[%clk 0:02:17.5]} 10... O-O {[%clk 0:02:44.5]} 11. e4 {[%clk 0:02:17.3]}
11... Bd7 {[%clk 0:02:41]} 12. Bf4 {[%clk 0:02:16.6]} 12... Ne5 {[%clk
0:02:38.8]} 13. c5 {[%clk 0:02:14.3]} 13... Bc6 {[%clk 0:02:29.9]} 14. Nd4
{[%clk 0:01:49.9]} 14... dxc5 {[%clk 0:02:18.1]} 15. Bxe5 {[%clk 0:01:33.3]}
15... cxd4 {[%clk 0:02:17.8]} 16. Qxd4 {[%clk 0:01:33.8]} 16... Qxd4 {[%clk
0:02:17.1]} 17. Bxd4 {[%clk 0:01:34.7]} 17... Nd7 {[%clk 0:02:05.2]} 18. Rfd1
{[%clk 0:01:28.9]} 18... e5 {[%clk 0:01:58.6]} 19. Be3 {[%clk 0:01:26.4]} 19...
Rfd8 {[%clk 0:01:58.6]} 20. Nd5 {[%clk 0:01:20.9]} 20... Bxd5 {[%clk 0:01:56.9]}
21. Rxd5 {[%clk 0:01:21.4]} 21... f6 {[%clk 0:01:42.7]} 22. Rad1 {[%clk
0:01:18.9]} 22... Nf8 {[%clk 0:01:42.1]} 23. Bb6 {[%clk 0:01:17.5]} 23... Rdc8
{[%clk 0:01:38.8]} 24. Bh3 {[%clk 0:01:12.3]} 24... Rc6 {[%clk 0:01:35.1]} 25.
Ba5 {[%clk 0:01:03.5]} 25... Kf7 {[%clk 0:01:35]} 26. Bc3 {[%clk 0:01:03.2]}
26... Ne6 {[%clk 0:01:04.8]} 27. a4 {[%clk 0:00:57.8]} 27... Nc5 {[%clk
0:00:59.1]} 28. Bb4 {[%clk 0:00:50.5]} 28... Nxe4 {[%clk 0:00:45.4]} 29. Rd7
{[%clk 0:00:48.3]} 29... Re8 {[%clk 0:00:45]} 30. Rxb7 {[%clk 0:00:46.1]} 30...
Kf8 {[%clk 0:00:21.1]} 31. Bd7 {[%clk 0:00:32.9]} 31... Rd8 {[%clk 0:00:12]} 32.
Bxe7+ {[%clk 0:00:31.2]} 1-0

[Event "Late-Titled-Tuesday-Blitz-March-05-2024"]
[Site "Chess.com"]
[Date "2024.03.05"]
[Round "8"]
[White "TheBigBoss04"]
[Black "Mikhal867"]
[Result "1-0"]
[WhiteElo "2692"]
[BlackElo "2504"]
[TimeControl "180+1"]
[EndTime "15:24:56 PST"]
[Termination "TheBigBoss04 won by resignation"]

1. Nf3 {[%clk 0:02:54.9]} 1... c5 {[%clk 0:02:54.3]} 2. e4 {[%clk 0:02:51.5]}
2... Nc6 {[%clk 0:02:53.9]} 3. Nc3 {[%clk 0:02:49.5]} 3... e5 {[%clk 0:02:50.4]}
4. Bc4 {[%clk 0:02:48.4]} 4... Be7 {[%clk 0:02:47.9]} 5. d3 {[%clk 0:02:45.9]}
5... d6 {[%clk 0:02:46.2]} 6. Nd2 {[%clk 0:02:46]} 6... h5 {[%clk 0:02:42.1]} 7.
Nf1 {[%clk 0:02:43.1]} 7... g6 {[%clk 0:02:35.4]} 8. Ne3 {[%clk 0:02:36]} 8...
Bg5 {[%clk 0:02:30]} 9. Ncd5 {[%clk 0:02:32.1]} 9... Nge7 {[%clk 0:02:27]} 10.
h4 {[%clk 0:02:31.6]} 10... Bh6 {[%clk 0:02:16]} 11. Nf6+ {[%clk 0:02:29]} 11...
Kf8 {[%clk 0:02:16.3]} 12. a4 {[%clk 0:02:22.9]} 12... Kg7 {[%clk 0:02:09.2]}
13. Qf3 {[%clk 0:02:13.3]} 13... Be6 {[%clk 0:01:50]} 14. c3 {[%clk 0:02:08.6]}
14... Bf4 {[%clk 0:01:30.8]} 15. g3 {[%clk 0:01:59.9]} 15... Bxc4 {[%clk
0:01:17.4]} 16. dxc4 {[%clk 0:01:51.5]} 16... Bxe3 {[%clk 0:01:10.9]} 17. Bxe3
{[%clk 0:01:50.1]} 17... Ng8 {[%clk 0:01:01.6]} 18. Nd5 {[%clk 0:01:44.8]} 18...
f6 {[%clk 0:00:55.4]} 19. Rd1 {[%clk 0:01:31]} 19... Nce7 {[%clk 0:00:54.8]} 20.
Ke2 {[%clk 0:01:07.8]} 20... Nxd5 {[%clk 0:00:54.4]} 21. Rxd5 {[%clk 0:01:06.3]}
21... Qe7 {[%clk 0:00:54.3]} 22. Rhd1 {[%clk 0:01:05.9]} 22... Rd8 {[%clk
0:00:35.5]} 23. Bxc5 {[%clk 0:01:05.9]} 23... Nh6 {[%clk 0:00:33.4]} 24. Rxd6
{[%clk 0:00:56.8]} 24... Rxd6 {[%clk 0:00:19.8]} 25. Rxd6 {[%clk 0:00:57.7]}
25... Ng4 {[%clk 0:00:18.7]} 26. Qd3 {[%clk 0:00:54.9]} 26... Kh6 {[%clk
0:00:13.5]} 27. Qd2+ {[%clk 0:00:52]} 27... g5 {[%clk 0:00:13.6]} 28. Qxg5+
{[%clk 0:00:49.2]} 28... Kh7 {[%clk 0:00:13]} 29. Qxh5+ {[%clk 0:00:46.4]} 29...
Nh6 {[%clk 0:00:13.1]} 30. Rd5 {[%clk 0:00:23.3]} 30... Qc7 {[%clk 0:00:13.2]}
31. Be3 {[%clk 0:00:21.1]} 31... Kg7 {[%clk 0:00:12.1]} 32. Bxh6+ {[%clk
0:00:20]} 32... Rxh6 {[%clk 0:00:12.2]} 33. Qg4+ {[%clk 0:00:20.6]} 33... Rg6
{[%clk 0:00:12.3]} 34. Rd7+ {[%clk 0:00:21.1]} 34... Kh6 {[%clk 0:00:12.1]} 35.
Qxg6+ {[%clk 0:00:19.9]} 35... Kxg6 {[%clk 0:00:12.4]} 36. Rxc7 {[%clk
0:00:20.8]} 1-0

[Event "Late-Titled-Tuesday-Blitz-March-05-2024"]
[Site "Chess.com"]
[Date "2024.03.05"]
[Round "8"]
[White "VinzentSpitzl"]
[Black "BeanScreen"]
[Result "1/2-1/2"]
[WhiteElo "2554"]
[BlackElo "2708"]
[TimeControl "180+1"]
[EndTime "15:24:58 PST"]
[Termination "Game drawn by stalemate"]

1. d4 {[%clk 0:03:00.9]} 1... d5 {[%clk 0:02:59.7]} 2. c4 {[%clk 0:03:00.4]}
2... e6 {[%clk 0:02:59.9]} 3. Nf3 {[%clk 0:03:00.1]} 3... a6 {[%clk 0:02:59.9]}
4. e3 {[%clk 0:02:56.1]} 4... Nf6 {[%clk 0:02:57.8]} 5. Nc3 {[%clk 0:02:56]}
5... c5 {[%clk 0:02:57.1]} 6. Be2 {[%clk 0:02:52.2]} 6... dxc4 {[%clk
0:02:48.1]} 7. a4 {[%clk 0:02:51.3]} 7... Nc6 {[%clk 0:02:44.2]} 8. Bxc4 {[%clk
0:02:44.9]} 8... cxd4 {[%clk 0:02:42.3]} 9. Nxd4 {[%clk 0:02:41.1]} 9... Nxd4
{[%clk 0:02:41.6]} 10. Qxd4 {[%clk 0:02:41.2]} 10... Qxd4 {[%clk 0:02:41.2]} 11.
exd4 {[%clk 0:02:42.1]} 11... Be7 {[%clk 0:02:40]} 12. d5 {[%clk 0:02:40.9]}
12... exd5 {[%clk 0:02:12.3]} 13. Nxd5 {[%clk 0:02:40.5]} 13... Nxd5 {[%clk
0:02:12.3]} 14. Bxd5 {[%clk 0:02:41.4]} 14... O-O {[%clk 0:02:12.4]} 15. O-O
{[%clk 0:02:39.6]} 15... Rd8 {[%clk 0:02:12.7]} 16. Bf3 {[%clk 0:02:35.2]} 16...
Bf6 {[%clk 0:02:12.4]} 17. Be3 {[%clk 0:02:27.2]} 17... Bxb2 {[%clk 0:01:47.2]}
18. Rab1 {[%clk 0:02:26.2]} 18... Bf6 {[%clk 0:01:47.2]} 19. Bxb7 {[%clk
0:02:24.6]} 19... Bxb7 {[%clk 0:01:47]} 20. Rxb7 {[%clk 0:02:23.6]} 20... Rac8
{[%clk 0:01:42.7]} 21. a5 {[%clk 0:02:19.5]} 21... Bc3 {[%clk 0:01:38.9]} 22.
Bb6 {[%clk 0:02:17.1]} 22... Rd5 {[%clk 0:01:34.3]} 23. Ra7 {[%clk 0:02:01.8]}
23... Bxa5 {[%clk 0:01:31.9]} 24. Rxa6 {[%clk 0:02:01.9]} 24... Bxb6 {[%clk
0:01:30.1]} 25. Rxb6 {[%clk 0:02:01.9]} 25... g6 {[%clk 0:01:27.9]} 26. Rb3
{[%clk 0:02:01]} 26... Rc2 {[%clk 0:01:25.7]} 27. g3 {[%clk 0:02:00]} 27... Rf5
{[%clk 0:01:22.7]} 28. Kg2 {[%clk 0:01:59.4]} 28... h5 {[%clk 0:01:22.4]} 29.
Rf3 {[%clk 0:01:59.1]} 29... Rxf3 {[%clk 0:01:15.8]} 30. Kxf3 {[%clk 0:01:58.7]}
30... Kg7 {[%clk 0:01:15.3]} 31. h4 {[%clk 0:01:58.4]} 31... Rc5 {[%clk
0:01:13.4]} 32. Kg2 {[%clk 0:01:58.2]} 32... Rf5 {[%clk 0:01:12.7]} 33. Re1
{[%clk 0:01:58.1]} 33... Kf6 {[%clk 0:01:12.7]} 34. Re3 {[%clk 0:01:58]} 34...
Re5 {[%clk 0:01:10.3]} 35. Rd3 {[%clk 0:01:58]} 35... Ke6 {[%clk 0:01:09.6]} 36.
Rc3 {[%clk 0:01:57.6]} 36... Rd5 {[%clk 0:01:08.7]} 37. Rb3 {[%clk 0:01:57.7]}
37... Kf6 {[%clk 0:01:08]} 38. Ra3 {[%clk 0:01:58]} 38... Re5 {[%clk 0:01:07.9]}
39. Rb3 {[%clk 0:01:57.9]} 39... Re6 {[%clk 0:01:08]} 40. Ra3 {[%clk 0:01:58.1]}
40... Kg7 {[%clk 0:01:08.3]} 41. Rb3 {[%clk 0:01:58.3]} 41... Rf6 {[%clk
0:01:08.6]} 42. Ra3 {[%clk 0:01:58.3]} 42... Rf5 {[%clk 0:01:09]} 43. Rb3 {[%clk
0:01:58.5]} 43... Kf6 {[%clk 0:01:09.6]} 44. Ra3 {[%clk 0:01:58.7]} 44... Re5
{[%clk 0:01:09.9]} 45. Rb3 {[%clk 0:01:58.9]} 45... Re2 {[%clk 0:01:09.9]} 46.
Ra3 {[%clk 0:01:58.8]} 46... Rd2 {[%clk 0:01:09.8]} 47. Rf3+ {[%clk 0:01:58.4]}
47... Ke6 {[%clk 0:01:09.6]} 48. Re3+ {[%clk 0:01:59.3]} 48... Kf6 {[%clk
0:01:08.9]} 49. Rf3+ {[%clk 0:01:59.9]} 49... Kg7 {[%clk 0:01:08.2]} 50. Re3
{[%clk 0:02:00.1]} 50... Rd6 {[%clk 0:01:08.1]} 51. Rc3 {[%clk 0:01:59.8]} 51...
Re6 {[%clk 0:01:07.7]} 52. Rb3 {[%clk 0:01:59.8]} 52... Re5 {[%clk 0:01:07.3]}
53. Ra3 {[%clk 0:02:00]} 53... Rb5 {[%clk 0:01:06.8]} 54. Rc3 {[%clk 0:01:59.8]}
54... Rb6 {[%clk 0:01:06.5]} 55. Rd3 {[%clk 0:01:59.1]} 55... Kf6 {[%clk
0:01:06.1]} 56. Rf3+ {[%clk 0:01:58.8]} 56... Ke7 {[%clk 0:01:06.1]} 57. Re3+
{[%clk 0:01:59.7]} 57... Re6 {[%clk 0:01:05.8]} 58. Rf3 {[%clk 0:02:00.6]} 58...
Rf6 {[%clk 0:01:05.6]} 59. Rd3 {[%clk 0:02:00.5]} 59... Rd6 {[%clk 0:01:04.8]}
60. Rc3 {[%clk 0:02:00.5]} 60... Kd7 {[%clk 0:01:04.1]} 61. Rb3 {[%clk
0:02:00.5]} 61... Ke6 {[%clk 0:01:04.2]} 62. Rb7 {[%clk 0:02:00.2]} 62... Rd5
{[%clk 0:01:02.9]} 63. Rb6+ {[%clk 0:02:00.1]} 63... Kf5 {[%clk 0:01:02.4]} 64.
Rb3 {[%clk 0:02:00.5]} 64... Kf6 {[%clk 0:01:01.8]} 65. Rf3+ {[%clk 0:01:59.7]}
65... Rf5 {[%clk 0:01:01.9]} 66. Re3 {[%clk 0:01:59.3]} 66... Re5 {[%clk
0:01:02]} 67. Rd3 {[%clk 0:01:59.2]} 67... Re6 {[%clk 0:01:02.1]} 68. Kf3 {[%clk
0:01:57.6]} 68... Kf5 {[%clk 0:01:01.5]} 69. Rd5+ {[%clk 0:01:57.2]} 69... Re5
{[%clk 0:01:00.9]} 70. Rd3 {[%clk 0:01:56.8]} 70... f6 {[%clk 0:01:00.1]} 71.
Rc3 {[%clk 0:01:56.6]} 71... g5 {[%clk 0:00:58.7]} 72. Rc4 {[%clk 0:01:54.3]}
72... Kg6 {[%clk 0:00:55.6]} 73. Rb4 {[%clk 0:01:53.3]} 73... Re1 {[%clk
0:00:52.1]} 74. Kg2 {[%clk 0:01:53.2]} 74... Re6 {[%clk 0:00:49.3]} 75. Ra4
{[%clk 0:01:53.1]} 75... Kf5 {[%clk 0:00:48.6]} 76. Ra5+ {[%clk 0:01:53]} 76...
Re5 {[%clk 0:00:48.4]} 77. Rxe5+ {[%clk 0:01:44.1]} 77... Kxe5 {[%clk
0:00:49.3]} 78. hxg5 {[%clk 0:01:43.6]} 78... fxg5 {[%clk 0:00:49.1]} 79. f4+
{[%clk 0:01:42.7]} 79... gxf4 {[%clk 0:00:48.2]} 80. gxf4+ {[%clk 0:01:42.8]}
80... Kxf4 {[%clk 0:00:49.1]} 81. Kh1 {[%clk 0:01:43.1]} 81... Kg3 {[%clk
0:00:49.2]} 82. Kg1 {[%clk 0:01:43.3]} 82... h4 {[%clk 0:00:49.8]} 83. Kh1
{[%clk 0:01:43.9]} 83... h3 {[%clk 0:00:50.4]} 84. Kg1 {[%clk 0:01:44.5]} 84...
h2+ {[%clk 0:00:50.9]} 85. Kh1 {[%clk 0:01:45]} 85... Kh3 {[%clk 0:00:51.8]}
1/2-1/2

[Event "Late-Titled-Tuesday-Blitz-March-05-2024"]
[Site "Chess.com"]
[Date "2024.03.05"]
[Round "8"]
[White "sergiochess83"]
[Black "SaqoChess_Twitch"]
[Result "0-1"]
[WhiteElo "2839"]
[BlackElo "2661"]
[TimeControl "180+1"]
[EndTime "15:25:00 PST"]
[Termination "SaqoChess_Twitch won by resignation"]

1. e4 {[%clk 0:02:54.1]} 1... c5 {[%clk 0:02:59.9]} 2. Nf3 {[%clk 0:02:52.8]}
2... d6 {[%clk 0:03:00.4]} 3. Bb5+ {[%clk 0:02:52.4]} 3... Bd7 {[%clk
0:03:00.4]} 4. c4 {[%clk 0:02:52.7]} 4... Nf6 {[%clk 0:02:59.8]} 5. Nc3 {[%clk
0:02:52.3]} 5... Nc6 {[%clk 0:02:58.9]} 6. d4 {[%clk 0:02:50.8]} 6... cxd4
{[%clk 0:02:58.9]} 7. Nxd4 {[%clk 0:02:51.7]} 7... g6 {[%clk 0:02:58.2]} 8. O-O
{[%clk 0:02:51.1]} 8... Bg7 {[%clk 0:02:58.7]} 9. Re1 {[%clk 0:02:42.4]} 9...
O-O {[%clk 0:02:58.9]} 10. Nxc6 {[%clk 0:02:32.5]} 10... Bxc6 {[%clk 0:02:52.4]}
11. h3 {[%clk 0:02:24.2]} 11... Rc8 {[%clk 0:02:52.2]} 12. Be3 {[%clk
0:02:04.1]} 12... Bxb5 {[%clk 0:02:47.4]} 13. cxb5 {[%clk 0:02:01.4]} 13... b6
{[%clk 0:02:47.9]} 14. Qa4 {[%clk 0:01:59.2]} 14... Qd7 {[%clk 0:02:47.5]} 15.
Rac1 {[%clk 0:01:55]} 15... Qb7 {[%clk 0:02:47.1]} 16. Bd4 {[%clk 0:01:49.7]}
16... e6 {[%clk 0:02:41.5]} 17. f3 {[%clk 0:01:40]} 17... Rc7 {[%clk 0:02:41.5]}
18. Ne2 {[%clk 0:01:32.7]} 18... Rfc8 {[%clk 0:02:38.2]} 19. Rxc7 {[%clk
0:01:31.7]} 19... Rxc7 {[%clk 0:02:38.5]} 20. Rc1 {[%clk 0:01:31]} 20... Rxc1+
{[%clk 0:02:36.1]} 21. Nxc1 {[%clk 0:01:31.9]} 21... d5 {[%clk 0:02:34.6]} 22.
e5 {[%clk 0:01:24.3]} 22... Nd7 {[%clk 0:02:34.2]} 23. Nd3 {[%clk 0:01:24.5]}
23... Qc7 {[%clk 0:02:32.7]} 24. f4 {[%clk 0:01:19.9]} 24... g5 {[%clk
0:02:16.3]} 25. g3 {[%clk 0:01:14.9]} 25... gxf4 {[%clk 0:02:16.7]} 26. gxf4
{[%clk 0:01:15]} 26... f6 {[%clk 0:02:16.8]} 27. exf6 {[%clk 0:01:06]} 27...
Bxf6 {[%clk 0:02:15]} 28. Bxf6 {[%clk 0:01:03.5]} 28... Nxf6 {[%clk 0:02:15.9]}
29. Qd4 {[%clk 0:01:01.5]} 29... Qg7+ {[%clk 0:02:10.7]} 30. Kf1 {[%clk
0:00:57.5]} 30... Qg3 {[%clk 0:02:01.3]} 31. Qxf6 {[%clk 0:00:44.3]} 31... Qxd3+
{[%clk 0:02:01.4]} 32. Kf2 {[%clk 0:00:45]} 32... Qc2+ {[%clk 0:01:56]} 33. Ke3
{[%clk 0:00:31.8]} 33... Qe4+ {[%clk 0:01:55.9]} 34. Kf2 {[%clk 0:00:30.6]}
34... d4 {[%clk 0:01:53.4]} 35. Qd8+ {[%clk 0:00:20]} 35... Kf7 {[%clk
0:01:49.8]} 36. Qd7+ {[%clk 0:00:20.1]} 36... Kg6 {[%clk 0:01:48.5]} 37. Qe8+
{[%clk 0:00:20.3]} 37... Kh6 {[%clk 0:01:29.4]} 38. Qf8+ {[%clk 0:00:17.2]}
38... Kh5 {[%clk 0:01:28.7]} 39. Qf6 {[%clk 0:00:11.6]} 39... Qf5 {[%clk
0:01:17.6]} 40. Qxd4 {[%clk 0:00:07.9]} 40... Kh4 {[%clk 0:01:16.8]} 41. Qe3
{[%clk 0:00:01.8]} 41... Qxh3 {[%clk 0:01:16.3]} 42. Qe5 {[%clk 0:00:02.1]}
42... Qg3+ {[%clk 0:01:16.5]} 43. Ke2 {[%clk 0:00:02.2]} 43... Qg4+ {[%clk
0:01:17.2]} 44. Ke3 {[%clk 0:00:02.2]} 44... Qf5 {[%clk 0:01:14.8]} 45. Qg7
{[%clk 0:00:01.9]} 45... h5 {[%clk 0:01:13.8]} 46. Qg8 {[%clk 0:00:01.5]} 46...
Qh3+ {[%clk 0:01:12.1]} 47. Ke4 {[%clk 0:00:01.5]} 47... Qf5+ {[%clk 0:01:11.9]}
48. Ke3 {[%clk 0:00:02]} 48... e5 {[%clk 0:01:05.5]} 49. fxe5 {[%clk 0:00:01.8]}
49... Qxe5+ {[%clk 0:01:06.4]} 50. Kf3 {[%clk 0:00:02.3]} 50... Qf5+ {[%clk
0:01:04.9]} 51. Ke3 {[%clk 0:00:02.8]} 51... Qh3+ {[%clk 0:01:05]} 52. Kf4
{[%clk 0:00:02.7]} 52... Qg4+ {[%clk 0:01:04.8]} 0-1

[Event "Late-Titled-Tuesday-Blitz-March-05-2024"]
[Site "Chess.com"]
[Date "2024.03.05"]
[Round "8"]
[White "Walter_White_Poland"]
[Black "terrortoast"]
[Result "1-0"]
[WhiteElo "2373"]
[BlackElo "2496"]
[TimeControl "180+1"]
[EndTime "15:25:04 PST"]
[Termination "Walter_White_Poland won by resignation"]

1. e4 {[%clk 0:02:10.5]} 1... c6 {[%clk 0:02:58.8]} 2. d4 {[%clk 0:02:09.5]}
2... d5 {[%clk 0:02:59.2]} 3. f3 {[%clk 0:02:09.9]} 3... Qb6 {[%clk 0:02:58.4]}
4. Nc3 {[%clk 0:02:09.6]} 4... dxe4 {[%clk 0:02:58.6]} 5. Bc4 {[%clk 0:02:07]}
5... Nf6 {[%clk 0:02:53.8]} 6. Bb3 {[%clk 0:02:04.3]} 6... e5 {[%clk 0:02:44]}
7. dxe5 {[%clk 0:02:00.5]} 7... Bc5 {[%clk 0:02:43.4]} 8. Na4 {[%clk 0:01:18.5]}
8... Bf2+ {[%clk 0:02:07.4]} 9. Kf1 {[%clk 0:01:15.8]} 9... Qb5+ {[%clk
0:01:57.4]} 10. Kxf2 {[%clk 0:01:14.7]} 10... Qxe5 {[%clk 0:01:57.6]} 11. Be3
{[%clk 0:01:09.5]} 11... exf3 {[%clk 0:01:49.7]} 12. gxf3 {[%clk 0:01:05.9]}
12... O-O {[%clk 0:01:45]} 13. Qd4 {[%clk 0:01:05.8]} 13... Qh5 {[%clk
0:01:34.1]} 14. Ne2 {[%clk 0:01:02.4]} 14... Nbd7 {[%clk 0:01:32.4]} 15. Ng3
{[%clk 0:01:01.2]} 15... Qh3 {[%clk 0:01:24.5]} 16. Nc3 {[%clk 0:00:39.8]} 16...
Nb6 {[%clk 0:01:11.1]} 17. Rhg1 {[%clk 0:00:20.6]} 17... Be6 {[%clk 0:00:57.9]}
18. Nce4 {[%clk 0:00:20.3]} 18... Nxe4+ {[%clk 0:00:40]} 19. Nxe4 {[%clk
0:00:19.2]} 19... Qh4+ {[%clk 0:00:36.9]} 20. Rg3 {[%clk 0:00:16.5]} 20... Qxh2+
{[%clk 0:00:28]} 21. Rg2 {[%clk 0:00:16.2]} 21... Qh4+ {[%clk 0:00:27.9]} 22.
Kg1 {[%clk 0:00:16.3]} 22... g5 {[%clk 0:00:12.9]} 23. Nf6+ {[%clk 0:00:15]}
23... Kh8 {[%clk 0:00:12.6]} 24. Qxh4 {[%clk 0:00:14.6]} 24... gxh4 {[%clk
0:00:12.8]} 25. Bh6 {[%clk 0:00:14.2]} 25... Rg8 {[%clk 0:00:09.9]} 26. Nxg8
{[%clk 0:00:14.1]} 26... Rxg8 {[%clk 0:00:10.5]} 27. Rxg8+ {[%clk 0:00:14.4]}
27... Kxg8 {[%clk 0:00:11.4]} 28. Kf2 {[%clk 0:00:14]} 28... Bxb3 {[%clk
0:00:10.5]} 29. axb3 {[%clk 0:00:13.6]} 29... a6 {[%clk 0:00:10.7]} 30. Rg1+
{[%clk 0:00:13.3]} 30... Kh8 {[%clk 0:00:10.5]} 31. Rg4 {[%clk 0:00:12.5]} 31...
f5 {[%clk 0:00:09.8]} 32. Rg7 {[%clk 0:00:11.4]} 32... Nd5 {[%clk 0:00:07.6]}
33. Rf7 {[%clk 0:00:11.1]} 1-0

[Event "Late-Titled-Tuesday-Blitz-March-05-2024"]
[Site "Chess.com"]
[Date "2024.03.05"]
[Round "8"]
[White "Smoking_Crow"]
[Black "ljuks68"]
[Result "1-0"]
[WhiteElo "2621"]
[BlackElo "2440"]
[TimeControl "180+1"]
[EndTime "15:25:07 PST"]
[Termination "Smoking_Crow won on time"]

1. d4 {[%clk 0:03:00.9]} 1... d5 {[%clk 0:02:47]} 2. c4 {[%clk 0:02:59]} 2... c6
{[%clk 0:02:46.9]} 3. Nc3 {[%clk 0:02:57.7]} 3... Nf6 {[%clk 0:02:47.2]} 4. Nf3
{[%clk 0:02:57.4]} 4... dxc4 {[%clk 0:02:47.2]} 5. a4 {[%clk 0:02:56.7]} 5...
Bf5 {[%clk 0:02:47.4]} 6. Ne5 {[%clk 0:02:55.3]} 6... Na6 {[%clk 0:02:47.2]} 7.
f3 {[%clk 0:02:53.3]} 7... Nd7 {[%clk 0:02:46.7]} 8. Nxc4 {[%clk 0:02:50.5]}
8... e5 {[%clk 0:02:46.9]} 9. e4 {[%clk 0:02:47.7]} 9... exd4 {[%clk 0:02:47.3]}
10. Qxd4 {[%clk 0:02:45.5]} 10... Nb4 {[%clk 0:02:47.5]} 11. Ne3 {[%clk
0:02:35.4]} 11... Be6 {[%clk 0:02:36.2]} 12. Qd1 {[%clk 0:02:32.1]} 12... Nc5
{[%clk 0:02:31.7]} 13. Be2 {[%clk 0:02:29.1]} 13... Nb3 {[%clk 0:02:12.8]} 14.
Rb1 {[%clk 0:02:26.9]} 14... Bc5 {[%clk 0:02:11.6]} 15. Nc4 {[%clk 0:02:17.9]}
15... Qxd1+ {[%clk 0:01:27.2]} 16. Nxd1 {[%clk 0:02:17.6]} 16... O-O-O {[%clk
0:01:14]} 17. Na3 {[%clk 0:01:24]} 17... Nd4 {[%clk 0:00:39.9]} 18. Nc3 {[%clk
0:01:09.8]} 18... Nxe2 {[%clk 0:00:32.6]} 19. Kxe2 {[%clk 0:01:09.5]} 19... Nd3
{[%clk 0:00:29.4]} 20. Be3 {[%clk 0:01:07.1]} 20... Bxa3 {[%clk 0:00:26.5]} 21.
bxa3 {[%clk 0:01:06.3]} 21... Bc4 {[%clk 0:00:26.6]} 22. Bxa7 {[%clk 0:00:57.2]}
22... Rd7 {[%clk 0:00:17.3]} 23. Bb6 {[%clk 0:00:56.3]} 23... Ne5+ {[%clk
0:00:12.1]} 24. Kf2 {[%clk 0:00:51.9]} 24... Rd2+ {[%clk 0:00:11.8]} 25. Kg3
{[%clk 0:00:49.7]} 25... h5 {[%clk 0:00:12.1]} 26. h4 {[%clk 0:00:47.5]} 26...
Rh6 {[%clk 0:00:12.1]} 27. Kf4 {[%clk 0:00:40.7]} 27... Nd3+ {[%clk 0:00:09.2]}
28. Ke3 {[%clk 0:00:38.5]} 28... Rxg2 {[%clk 0:00:09.1]} 29. Bd4 {[%clk
0:00:31.7]} 29... Rd6 {[%clk 0:00:06.3]} 30. Rhg1 {[%clk 0:00:26.6]} 30... Rxg1
{[%clk 0:00:04.7]} 31. Rxg1 {[%clk 0:00:27.5]} 31... g6 {[%clk 0:00:05.4]} 32.
e5 {[%clk 0:00:25.7]} 32... Rd8 {[%clk 0:00:04.6]} 33. Ne4 {[%clk 0:00:24.7]}
33... c5 {[%clk 0:00:01.6]} 34. Bc3 {[%clk 0:00:24.6]} 1-0

[Event "Late-Titled-Tuesday-Blitz-March-05-2024"]
[Site "Chess.com"]
[Date "2024.03.05"]
[Round "8"]
[White "dimoni64"]
[Black "KorolDimitriy75"]
[Result "0-1"]
[WhiteElo "1975"]
[BlackElo "2396"]
[TimeControl "180+1"]
[EndTime "15:25:07 PST"]
[Termination "KorolDimitriy75 won by checkmate"]

1. d4 {[%clk 0:02:53.5]} 1... Nf6 {[%clk 0:02:59.6]} 2. c4 {[%clk 0:02:52.6]}
2... c5 {[%clk 0:02:59.1]} 3. Nf3 {[%clk 0:02:51.4]} 3... cxd4 {[%clk
0:02:59.1]} 4. Nxd4 {[%clk 0:02:51.5]} 4... g6 {[%clk 0:02:59.6]} 5. Nc3 {[%clk
0:02:50.5]} 5... Bg7 {[%clk 0:02:59.8]} 6. e4 {[%clk 0:02:49.8]} 6... Nc6 {[%clk
0:02:59.8]} 7. Be3 {[%clk 0:02:49.4]} 7... O-O {[%clk 0:02:59.6]} 8. Be2 {[%clk
0:02:49.5]} 8... d6 {[%clk 0:02:59.5]} 9. O-O {[%clk 0:02:49.4]} 9... Bd7 {[%clk
0:02:59.8]} 10. Rc1 {[%clk 0:02:48.6]} 10... Nxd4 {[%clk 0:02:59.5]} 11. Bxd4
{[%clk 0:02:48.5]} 11... Bc6 {[%clk 0:02:59.8]} 12. f3 {[%clk 0:02:47.7]} 12...
a5 {[%clk 0:02:59.8]} 13. b3 {[%clk 0:02:31.8]} 13... Nd7 {[%clk 0:02:59.8]} 14.
Qd2 {[%clk 0:02:29.7]} 14... Bxd4+ {[%clk 0:02:58.2]} 15. Qxd4 {[%clk
0:02:29.1]} 15... Qb6 {[%clk 0:02:59.1]} 16. Qxb6 {[%clk 0:02:28.4]} 16... Nxb6
{[%clk 0:03:00]} 17. Nd5 {[%clk 0:02:28.2]} 17... Bxd5 {[%clk 0:02:56.2]} 18.
cxd5 {[%clk 0:02:25.3]} 18... Rfc8 {[%clk 0:02:55.9]} 19. Bb5 {[%clk 0:02:19]}
19... f5 {[%clk 0:02:44.1]} 20. Kf2 {[%clk 0:02:11.4]} 20... Kg7 {[%clk
0:02:43.5]} 21. Ke3 {[%clk 0:02:11.5]} 21... Kf6 {[%clk 0:02:43.3]} 22. Kd4
{[%clk 0:02:07.9]} 22... e5+ {[%clk 0:02:04.5]} 23. dxe6 {[%clk 0:02:04.4]}
23... Kxe6 {[%clk 0:02:03.9]} 24. exf5+ {[%clk 0:01:56.8]} 24... gxf5 {[%clk
0:01:57.4]} 25. Rfe1+ {[%clk 0:01:55.4]} 25... Kf6 {[%clk 0:01:57]} 26. a4
{[%clk 0:01:47]} 26... h5 {[%clk 0:01:55.8]} 27. g3 {[%clk 0:01:35.4]} 27... h4
{[%clk 0:01:52.8]} 28. gxh4 {[%clk 0:01:30.7]} 28... Rh8 {[%clk 0:01:51.8]} 29.
Rc7 {[%clk 0:01:22.3]} 29... Rxh4+ {[%clk 0:01:51.6]} 30. Kd3 {[%clk 0:01:18.3]}
30... Nd5 {[%clk 0:01:37]} 31. Rxb7 {[%clk 0:01:14.9]} 31... Nb4+ {[%clk
0:01:11.4]} 32. Kc3 {[%clk 0:01:00.3]} 32... Rc8+ {[%clk 0:01:10.6]} 33. Bc4
{[%clk 0:00:59.9]} 33... d5 {[%clk 0:01:09.9]} 34. Rb6+ {[%clk 0:00:57.7]} 34...
Kg5 {[%clk 0:01:09.7]} 35. f4+ {[%clk 0:00:33.4]} 35... Rxf4 {[%clk 0:00:54.5]}
36. Rg1+ {[%clk 0:00:31.5]} 36... Rg4 {[%clk 0:00:42.9]} 37. h4+ {[%clk
0:00:24.4]} 37... Kf4 {[%clk 0:00:40.2]} 38. Rf1+ {[%clk 0:00:23]} 38... Kg3
{[%clk 0:00:38.3]} 39. Rxf5 {[%clk 0:00:15.6]} 39... dxc4 {[%clk 0:00:37.3]} 40.
bxc4 {[%clk 0:00:15.9]} 40... Rgxc4+ {[%clk 0:00:35]} 41. Kb3 {[%clk 0:00:16.4]}
41... Rc3+ {[%clk 0:00:29.6]} 42. Kb2 {[%clk 0:00:16.4]} 42... Rc2+ {[%clk
0:00:29.5]} 43. Kb1 {[%clk 0:00:16.3]} 43... Rc1+ {[%clk 0:00:29.5]} 44. Kb2
{[%clk 0:00:16.3]} 44... R8c2+ {[%clk 0:00:29.2]} 45. Kb3 {[%clk 0:00:14.8]}
45... Rb1+ {[%clk 0:00:29.1]} 46. Ka3 {[%clk 0:00:14.7]} 46... Ra2# {[%clk
0:00:29.2]} 0-1